bitfinex-derivatives/quotes_SOLF0:USTF0_20250924
["timestamp","ask_amount","ask_price","bid_price","bid_amount"]
[1758746412692,3.69541324,211.57,211.51,48.68]
[1758746412891,8.01,211.59,211.52,11.0428]
[1758746413091,3.69452172,211.58,211.52,11.0428]
[1758746413283,11.70452172,211.57,211.52,11.0428]
[1758746413593,3.69452172,211.56,211.52,11.0428]
[1758746413792,8.01,211.57,211.52,11.0428]
[1758746413793,8.01,211.57,211.53,6.79]
[1758746413993,3.69516008,211.56,211.53,6.79]
[1758746414289,8.01,211.57,211.53,6.79]
[1758746414498,11.70457624,211.56,211.53,6.79]
[1758746414695,8.01,211.56,211.53,6.79]
[1758746415188,3.69389597,211.55,211.52,6.79]
[1758746415392,8.01,211.55,211.52,123.75]
[1758746415996,3.43903378,211.58,211.49,5.28088016]
[1758746416296,11.7035923,211.57,211.49,5.28088016]
[1758746416496,3.6935923,211.56,211.49,5.28088016]
[1758746416697,3.6935923,211.55,211.49,5.28088016]
[1758746416898,3.6935923,211.54,211.49,5.28088016]
[1758746417091,8.01,211.54,211.49,12.07088016]
[1758746417292,8.01,211.57,211.49,12.07088016]
[1758746417487,3.43903378,211.53,211.49,5.28088016]
[1758746417695,3.69078148,211.56,211.49,4.67248562]
[1758746417696,11.44903378,211.5,211.49,4.67248562]
[1758746417896,15.13981526,211.5,211.49,4.67248562]
[1758746418498,19.87301526,211.5,211.41,27.4349]
[1758746418699,8.01,211.48,211.34,6.79]
[1758746418901,3.43903378,211.44,211.34,118.40758312]
[1758746419207,3.43903378,211.44,211.34,103.95]
[1758746419502,11.69324663,211.43,211.34,103.95]
[1758746419704,8.01,211.43,211.34,103.95]
[1758746419894,8.01,211.43,211.35,117.5]
[1758746420097,8.01,211.43,211.34,6.79]
[1758746420299,99.39949178,211.3,211.0,7.09]
[1758746420508,66.2633,211.18,211.0,0.1]
[1758746420810,8.01,211.13,211.0,7.09]
[1758746421303,8.01,211.13,211.04,6.99]
[1758746422110,8.01,211.18,211.04,73.2952]
[1758746422305,8.01,211.16,211.04,6.99]
[1758746422501,8.01,211.16,211.0,0.1]
[1758746422502,8.01,211.12,211.0,0.1]
[1758746422806,3.79305526,211.11,211.0,0.1]
[1758746423106,3.79305526,211.1,211.0,0.1]
[1758746423304,8.01,211.02,210.86,66.3614]
[1758746423512,3.79305526,211.01,210.86,66.3616]
[1758746423707,3.79305526,211.0,210.88,66.3547]
[1758746423902,8.01,211.02,210.89,123.62]
[1758746424100,12.7779058,211.08,210.94,66.3363]
[1758746424406,7.33,211.06,210.95,124.54]
[1758746424707,3.76213368,211.05,210.96,4.1267944]
[1758746424909,3.76213368,211.04,210.97,4.1267944]
[1758746425106,7.33,211.11,210.98,4.1267944]
[1758746425305,3.75232373,211.1,211.0,66.3173]
[1758746425507,12.7779058,211.08,211.01,4.1267944]
[1758746425708,7.33,211.06,210.95,4.1267944]
[1758746426009,3.75232373,211.05,210.97,0.04]
[1758746426207,3.74473493,211.04,210.98,4.1267944]
[1758746426506,3.74473493,211.04,210.97,0.04]
[1758746426507,11.07473493,211.03,210.97,125.42]
[1758746426699,3.74473493,211.02,210.97,125.42]
[1758746426901,3.74473493,211.01,210.97,125.46]
[1758746427104,3.74473493,211.0,210.97,125.46]
[1758746427305,3.74473493,210.99,210.9,0.04]
[1758746427510,3.74473493,210.98,210.95,125.42]
[1758746427802,5.4479058,211.07,210.95,125.42]
[1758746428007,3.72904729,211.06,210.95,125.42]
[1758746428210,3.72904729,211.05,210.9,66.388]
[1758746428411,3.72904729,211.04,210.93,0.04]
[1758746428603,5.4479058,211.07,210.93,0.04]
[1758746428604,3.72904729,211.03,210.94,125.34]
[1758746428807,3.72904729,211.02,210.94,125.34]
[1758746429010,3.72904729,211.01,210.94,125.34]
[1758746429206,3.72904729,211.0,210.9,125.36]
[1758746429413,3.72904729,210.99,210.9,125.36]
[1758746429602,12.7779058,211.03,210.9,125.36]
[1758746429806,3.7144593,211.02,210.9,125.36]
[1758746430008,3.7144593,211.01,210.9,125.36]
[1758746430314,12.7779058,211.03,210.9,125.36]
[1758746430610,3.70861407,211.02,210.9,125.36]
[1758746430815,3.70861407,211.01,210.91,125.28]
[1758746431109,7.33,211.03,210.92,0.04]
[1758746431414,5.4479058,211.05,210.92,0.04]
[1758746431415,3.7093621,211.02,210.92,0.04]
[1758746431617,7.33,211.04,210.92,0.04]
[1758746431809,3.7035239,211.03,210.92,0.04]
[1758746432011,7.33,211.04,210.92,66.3825]
[1758746432212,3.70361629,211.03,210.92,66.3825]
[1758746432410,7.33,211.04,210.92,66.3825]
[1758746432607,7.33,211.09,210.93,0.04]
[1758746432809,7.33,211.09,210.97,0.04]
[1758746433006,7.33,211.09,210.98,105.38]
[1758746433308,7.33,211.06,210.91,125.26]
[1758746433513,3.69917796,211.05,210.92,0.04]
[1758746433712,7.33,211.06,210.92,0.04]
[1758746434718,7.33,211.06,210.93,70.6041]
[1758746435915,7.33,211.06,210.95,70.5976]
[1758746436115,5.4479058,211.1,210.96,0.04]
[1758746436318,7.33,211.11,210.98,0.04]
[1758746436713,7.33,211.11,210.99,70.5844]
[1758746436913,7.33,211.11,211.0,0.04]
[1758746437523,7.33,211.11,211.01,70.5776]
[1758746438015,5.4479058,211.15,211.04,0.04]
[1758746438216,5.4479058,211.15,211.05,125.12]
[1758746438624,7.33,211.16,211.05,191.4219]
[1758746439124,7.33,211.16,211.06,70.5609]
[1758746439624,5.4479058,211.19,211.07,0.04]
[1758746440921,7.33,211.14,211.01,0.04]
[1758746441109,7.33,211.14,211.02,124.92]
[1758746442021,7.33,211.14,211.02,129.1827]
[1758746442714,7.33,211.14,211.01,0.04]
[1758746442917,7.33,211.14,211.02,109.38]
[1758746444727,7.33,211.14,211.02,113.6427]
[1758746445725,7.33,211.14,211.04,4.2623]
[1758746446327,3.70708286,211.13,211.04,4.2623]
[1758746446527,7.33,211.14,211.04,4.2623]
[1758746446827,3.70800869,211.13,211.04,4.2623]
[1758746447022,7.33,211.14,211.05,124.6]
[1758746447223,3.70801214,211.13,211.05,124.6]
[1758746447427,7.33,211.14,211.05,124.6]
[1758746447621,3.71129418,211.13,211.05,124.6]
[1758746447821,7.33,211.14,211.05,124.6]
[1758746448120,3.71129877,211.13,211.05,124.64]
[1758746448321,3.71520345,211.12,211.05,124.64]
[1758746448522,7.33,211.14,211.05,124.64]
[1758746448821,7.33,211.14,211.06,124.5]
[1758746449032,5.4479058,211.17,211.06,128.762]
[1758746449231,3.71523099,211.16,211.06,128.762]
[1758746449527,3.71523099,211.15,211.06,128.762]
[1758746449825,3.71523099,211.14,211.08,4.2616]
[1758746450026,7.33,211.19,211.08,4.2616]
[1758746450221,3.72020473,211.18,211.08,4.2616]
[1758746450422,3.72020473,211.17,211.09,0.04]
[1758746450618,7.33,211.19,211.09,0.04]
[1758746450818,3.7251449,211.18,211.09,0.04]
[1758746451013,3.7251449,211.17,211.1,4.2612]
[1758746451217,7.33,211.19,211.1,4.2612]
[1758746451423,3.72514105,211.18,211.1,4.2612]
[1758746451722,3.72514105,211.17,211.1,4.2612]
[1758746451929,7.33,211.19,211.1,4.2612]
[1758746452123,3.72962288,211.18,211.09,0.04]
[1758746452425,7.33,211.24,211.11,0.04]
[1758746452627,3.73523683,211.23,211.12,124.4]
[1758746452826,3.73523683,211.22,211.12,124.4]
[1758746453018,3.73523683,211.21,211.13,0.04]
[1758746453221,3.73523683,211.2,211.14,124.36]
[1758746453422,3.73523683,211.19,211.15,0.04]
[1758746453622,7.33,211.24,211.14,124.4]
[1758746453927,3.74002665,211.23,211.14,124.4]
[1758746454128,3.74002665,211.22,211.14,124.4]
[1758746454328,3.74002665,211.21,211.14,124.4]
[1758746454526,3.74002665,211.2,211.16,0.04]
[1758746454730,3.74002665,211.19,211.15,4.2602]
[1758746454925,7.33,211.24,211.16,0.04]
[1758746455228,3.7464729,211.23,211.16,0.04]
[1758746455427,3.7464729,211.22,211.16,0.04]
[1758746455622,3.7464729,211.21,211.15,4.3002]
[1758746455927,3.7464729,211.2,211.15,124.14]
[1758746456231,3.7464729,211.19,211.14,124.14]
[1758746456432,3.7464729,211.18,211.14,124.18]
[1758746456624,3.7464729,211.17,211.14,0.04]
[1758746456819,3.7464729,211.16,211.15,124.16]
[1758746457127,3.7464729,211.16,211.15,124.2]
[1758746458330,3.7464729,211.16,211.15,128.4602]
[1758746458825,1.89689862,211.16,211.15,128.9402]
[1758746459034,5.23675968,211.25,211.17,4.2598]
[1758746459434,5.23675968,211.24,211.17,4.2598]
[1758746459837,5.23675968,211.24,211.18,4.2594]
[1758746460133,13.24675968,211.27,211.15,124.2]
[1758746460335,5.23675968,211.25,211.19,4.2592]
[1758746460837,13.24675968,211.27,211.18,66.3214]
[1758746461135,13.24675968,211.27,211.22,4.2588]
[1758746461331,5.23675968,211.25,211.22,128.0788]
[1758746461931,5.23675968,211.25,211.22,123.82]
[1758746462535,5.23675968,211.24,211.23,0.06]
[1758746462734,5.23675968,211.24,211.22,123.82]
[1758746463143,5.23675968,211.26,211.22,123.82]
[1758746463432,5.23675968,211.24,211.22,123.82]
[1758746464024,5.23675968,211.25,211.22,123.82]
[1758746464222,5.23675968,211.25,211.23,4.2586]
[1758746464423,5.23675968,211.24,211.23,4.2586]
[1758746465431,7.85513953,211.26,211.23,4.2586]
[1758746465631,7.85513953,211.26,211.14,66.2718]
[1758746465833,5.13171998,211.21,211.15,123.76]
[1758746466338,5.13171998,211.21,211.16,66.2674]
[1758746466630,5.13171998,211.22,211.16,66.2674]
[1758746466834,5.13171998,211.23,211.17,66.2639]
[1758746467036,5.13171998,211.24,211.18,66.2611]
[1758746467638,5.13171998,211.26,211.19,123.76]
[1758746468031,5.13171998,211.28,211.19,123.76]
[1758746469341,12.61171998,211.29,211.23,4.2584]
[1758746469540,7.48,211.28,211.24,123.72]
[1758746469741,7.48,211.28,211.23,4.2584]
[1758746469943,7.48,211.28,211.24,123.62]
[1758746470240,5.13171998,211.29,211.24,123.62]
[1758746470435,5.13171998,211.3,211.24,123.62]
[1758746470641,5.13171998,211.32,211.25,123.56]
[1758746470842,3.49057941,211.31,211.27,4.2576]
[1758746471038,3.49057941,211.3,211.27,4.2576]
[1758746471230,3.49057941,211.29,211.27,4.2576]
[1758746471432,3.49057941,211.28,211.27,4.2576]
[1758746472446,3.49057941,211.28,211.24,4.2583]
[1758746472641,3.49057941,211.27,211.25,123.48]
[1758746472841,3.49057941,211.26,211.25,123.48]
[1758746473043,3.49057941,211.26,211.25,123.42]
[1758746473245,7.48,211.31,211.25,123.42]
[1758746473439,3.48934915,211.3,211.25,123.42]
[1758746473747,7.48,211.31,211.25,123.42]
[1758746473748,3.48934915,211.29,211.25,127.6781]
[1758746473945,3.48934915,211.28,211.25,127.6781]
[1758746474146,3.48934915,211.27,211.25,127.6781]
[1758746474347,7.48,211.31,211.25,127.6781]
[1758746474546,10.97006198,211.3,211.25,127.6781]
[1758746474741,3.49006198,211.29,211.25,123.42]
[1758746474939,12.61171998,211.36,211.26,66.2362]
[1758746475143,3.49019489,211.35,211.26,66.2362]
[1758746475345,3.49019489,211.34,211.31,4.2569]
[1758746475540,3.49019489,211.33,211.32,123.28]
[1758746475849,7.48,211.36,211.32,123.28]
[1758746476149,7.48,211.36,211.32,127.5366]
[1758746476849,7.48,211.41,211.33,4.2565]
[1758746477045,3.45157459,211.4,211.33,4.2565]
[1758746477251,3.45157459,211.39,211.32,123.28]
[1758746477447,3.45157459,211.38,211.35,4.2561]
[1758746477646,7.48,211.39,211.35,4.2561]
[1758746477847,3.45129203,211.38,211.35,4.2561]
[1758746478044,7.48,211.39,211.35,4.2561]
[1758746479354,7.48,211.43,211.36,4.2558]
[1758746479550,7.48,211.41,211.37,123.02]
[1758746479854,10.93299072,211.4,211.37,123.02]
[1758746480049,7.48,211.4,211.37,123.02]
[1758746480749,7.48,211.4,211.37,127.2757]
[1758746481253,131.20871197,211.47,211.37,122.96]
[1758746481448,3.4539659,211.46,211.37,122.96]
[1758746481656,10.9339659,211.45,211.38,4.2555]
[1758746481846,7.48,211.43,211.38,4.2555]
[1758746482046,7.48,211.41,211.38,4.2555]
[1758746482351,10.9339659,211.4,211.37,122.9]
[1758746482543,136.34043195,211.47,211.37,122.8]
[1758746482544,10.9339659,211.39,211.37,122.8]
[1758746482748,7.48,211.39,211.37,122.8]
[1758746483256,136.34043195,211.47,211.37,122.8]
[1758746483552,4.2549,211.42,211.37,122.8]
[1758746483762,7.48,211.4,211.37,122.8]
[1758746483955,3.45436468,211.39,211.37,122.8]
[1758746484156,7.48,211.4,211.37,122.8]
[1758746484366,3.45436367,211.39,211.37,122.8]
[1758746484564,7.48,211.4,211.37,122.8]
[1758746484764,3.45397135,211.39,211.37,122.8]
[1758746485062,7.48,211.4,211.37,122.8]
[1758746485666,7.48,211.4,211.37,127.0557]
[1758746486162,12.0345,211.44,211.37,127.0557]
[1758746486367,3.45320643,211.43,211.37,127.0557]
[1758746486567,7.78,211.41,211.37,127.0557]
[1758746487365,3.45361742,211.4,211.37,122.44]
[1758746487566,7.78,211.41,211.37,122.44]
[1758746487868,3.45459734,211.4,211.37,122.44]
[1758746488064,7.78,211.41,211.37,122.44]
[1758746488265,3.45445504,211.4,211.37,122.44]
[1758746488469,7.78,211.41,211.37,122.44]
[1758746488668,3.45554186,211.4,211.37,122.44]
[1758746488968,7.78,211.41,211.37,122.44]
[1758746489271,3.45554186,211.4,211.37,122.44]
[1758746489466,7.78,211.41,211.36,4.2559]
[1758746489764,3.4567316,211.4,211.37,122.28]
[1758746490060,7.78,211.41,211.37,122.28]
[1758746490264,3.45672857,211.4,211.37,122.28]
[1758746490461,7.78,211.41,211.37,122.28]
[1758746490661,3.45803791,211.4,211.37,126.5357]
[1758746490873,12.0343,211.45,211.37,126.5357]
[1758746491064,3.45803689,211.44,211.37,126.5357]
[1758746491270,3.45803689,211.43,211.37,126.5357]
[1758746491572,3.45803689,211.42,211.37,126.5357]
[1758746491768,3.45803689,211.41,211.37,126.5357]
[1758746491967,3.45803689,211.4,211.37,126.5357]
[1758746492168,12.0343,211.45,211.37,126.5357]
[1758746492471,3.459009,211.44,211.38,4.2555]
[1758746492667,3.459009,211.43,211.38,4.2555]
[1758746492867,3.459009,211.42,211.37,122.28]
[1758746493074,3.459009,211.41,211.37,122.28]
[1758746493266,12.0343,211.45,211.37,122.28]
[1758746493570,3.46325632,211.44,211.37,122.28]
[1758746493770,3.46325632,211.43,211.37,122.28]
[1758746493967,3.46325632,211.42,211.37,122.28]
[1758746494167,3.46325632,211.41,211.39,4.2552]
[1758746494363,12.0343,211.45,211.39,4.2552]
[1758746494568,3.46490094,211.44,211.39,4.2552]
[1758746494770,3.46490094,211.43,211.39,4.2552]
[1758746494972,3.46490094,211.42,211.4,4.255]
[1758746495172,12.0335,211.49,211.37,122.28]
[1758746495364,3.46441551,211.48,211.37,122.28]
[1758746495563,3.46441551,211.47,211.42,4.2547]
[1758746495768,3.46441551,211.46,211.43,121.9]
[1758746495973,3.46441551,211.45,211.44,121.88]
[1758746496370,3.46441551,211.48,211.44,121.88]
[1758746496567,3.46441551,211.47,211.44,121.88]
[1758746496875,3.46441551,211.46,211.44,121.88]
[1758746497071,7.71871551,211.45,211.37,4.2557]
[1758746497375,3.46441551,211.44,211.38,121.84]
[1758746497576,3.46441551,211.43,211.38,121.84]
[1758746497766,3.46441551,211.42,211.38,121.84]
[1758746497969,4.2543,211.45,211.38,121.84]
[1758746498170,3.46656124,211.44,211.38,126.0955]
[1758746498375,3.46656124,211.43,211.38,126.0955]
[1758746498576,3.46656124,211.42,211.38,126.0955]
[1758746498777,7.78,211.46,211.39,4.2553]
[1758746498974,3.46693237,211.45,211.39,4.2553]
[1758746499173,3.46693237,211.44,211.38,121.84]
[1758746499374,3.46693237,211.43,211.38,121.84]
[1758746499673,3.46693237,211.42,211.38,121.84]
[1758746499874,7.78,211.46,211.38,121.84]
[1758746500075,3.4672351,211.45,211.38,121.84]
[1758746500278,3.4672351,211.44,211.4,4.255]
[1758746500481,3.4672351,211.43,211.4,4.255]
[1758746500676,7.78,211.46,211.4,4.255]
[1758746500877,3.46715878,211.45,211.4,4.255]
[1758746501077,3.46715878,211.44,211.4,4.255]
[1758746501279,3.46715878,211.43,211.41,4.2549]
[1758746501479,4.2535,211.49,211.41,4.2549]
[1758746501678,3.46819823,211.48,211.41,4.2549]
[1758746501879,3.46819823,211.47,211.41,4.2549]
[1758746502081,3.46819823,211.46,211.41,4.2549]
[1758746502281,3.46819823,211.45,211.41,4.2549]
[1758746502483,3.46819823,211.44,211.41,4.2549]
[1758746502680,4.2535,211.49,211.41,4.2549]
[1758746502984,3.46933173,211.48,211.42,4.2547]
[1758746503176,4.2535,211.49,211.43,121.56]
[1758746503177,3.46933173,211.47,211.43,121.56]
[1758746503372,3.46933173,211.46,211.43,125.8144]
[1758746503579,3.46933173,211.45,211.43,125.8144]
[1758746503775,7.78,211.5,211.43,121.56]
[1758746503973,3.47036241,211.49,211.43,121.56]
[1758746504181,3.47036241,211.48,211.43,121.56]
[1758746504376,5.13171998,211.53,211.36,66.2045]
[1758746504377,3.47036241,211.47,211.36,66.2045]
[1758746504581,3.47036241,211.46,211.37,121.42]
[1758746504775,3.47036241,211.45,211.37,121.42]
[1758746504984,3.47036241,211.44,211.37,121.42]
[1758746505181,7.78,211.48,211.37,121.42]
[1758746505382,3.47057159,211.47,211.37,121.42]
[1758746505580,3.47057159,211.46,211.4,4.2551]
[1758746505782,3.47057159,211.45,211.4,4.2551]
[1758746505981,3.47057159,211.44,211.4,4.2551]
[1758746506182,7.78,211.48,211.4,4.2551]
[1758746506378,3.45190119,211.47,211.4,4.2551]
[1758746506683,3.45190119,211.47,210.93,26.46421842]
[1758746506684,3.44477982,211.41,211.27,66.2332]
[1758746506882,3.45190119,211.4,211.28,96.14]
[1758746507085,3.45190119,211.39,211.28,110.18163147]
[1758746507383,3.44477982,211.41,211.28,110.18163147]
[1758746507584,3.452526,211.4,211.28,110.18163147]
[1758746507882,3.44477982,211.41,211.3,66.2236]
[1758746508278,3.44477982,211.41,211.34,4.2563]
[1758746508473,3.453549,211.4,211.34,121.32]
[1758746508779,3.44477982,211.41,211.34,121.32]
[1758746508980,3.45355177,211.4,211.34,121.32]
[1758746509181,3.44477982,211.41,211.34,121.32]
[1758746509383,7.78,211.42,211.34,121.32]
[1758746509578,3.45479231,211.41,211.34,121.32]
[1758746509779,7.78,211.42,211.34,121.32]
[1758746509978,3.45478817,211.41,211.38,4.2554]
[1758746510183,11.22477982,211.46,211.38,4.2554]
[1758746510382,3.45598819,211.45,211.38,4.2554]
[1758746510582,3.45598819,211.44,211.38,4.2554]
[1758746510787,3.45598819,211.43,211.38,4.2554]
[1758746510982,3.45598819,211.42,211.39,121.26]
[1758746511286,11.22477982,211.46,211.39,121.26]
[1758746511486,3.45768312,211.45,211.39,121.26]
[1758746511688,7.78,211.43,211.39,121.26]
[1758746511886,3.45768312,211.42,211.39,121.26]
[1758746512087,7.78,211.43,211.39,125.5152]
[1758746512288,3.45754537,211.42,211.39,125.5152]
[1758746512488,3.45754537,211.41,211.39,125.5152]
[1758746512689,7.78,211.43,211.39,125.5152]
[1758746512890,3.45908893,211.42,211.39,125.5152]
[1758746513193,3.44477982,211.46,211.39,121.26]
[1758746513387,3.46044687,211.45,211.39,121.26]
[1758746513586,3.44477982,211.46,211.39,121.26]
[1758746513587,11.24044687,211.44,211.39,121.26]
[1758746513787,3.46044687,211.43,211.39,121.26]
[1758746513987,7.78,211.45,211.35,66.2076]
[1758746514287,3.46042656,211.44,211.36,121.08]
[1758746514487,7.78,211.45,211.36,121.08]
[1758746514488,3.46042656,211.43,211.36,121.08]
[1758746514690,7.78,211.45,211.36,121.08]
[1758746514890,3.46183323,211.44,211.36,121.08]
[1758746515190,3.46183323,211.43,211.36,121.08]
[1758746515388,7.78,211.45,211.36,121.08]
[1758746515588,3.46354061,211.44,211.36,121.08]
[1758746515792,3.46354061,211.43,211.36,121.08]
[1758746515993,7.78,211.45,211.36,121.08]
[1758746516289,3.46354061,211.44,211.39,4.2552]
[1758746516494,3.46354061,211.43,211.39,4.2552]
[1758746516695,7.78,211.45,211.36,121.08]
[1758746516993,3.46475995,211.44,211.36,121.08]
[1758746517190,3.46475995,211.43,211.36,121.08]
[1758746517392,7.78,211.45,211.36,121.08]
[1758746517690,3.46613001,211.44,211.36,121.08]
[1758746517892,3.46613001,211.43,211.36,121.08]
[1758746518093,7.78,211.45,211.41,4.2549]
[1758746518290,3.46613001,211.44,211.41,125.1349]
[1758746518491,3.46613001,211.43,211.41,125.1349]
[1758746518791,10.81477982,211.48,211.41,125.1349]
[1758746518991,3.46785876,211.47,211.41,125.1349]
[1758746519192,3.46785876,211.46,211.41,125.1349]
[1758746519392,3.46785876,211.45,211.41,125.1349]
[1758746519595,3.46785876,211.44,211.41,125.1349]
[1758746519784,3.46785876,211.43,211.41,125.1349]
[1758746519988,10.81477982,211.48,211.41,125.1349]
[1758746520189,10.80989276,211.47,211.42,4.2546]
[1758746520390,3.46989276,211.46,211.42,4.2546]
[1758746520592,3.46989276,211.45,211.42,4.2546]
[1758746520792,3.46989276,211.44,211.42,4.2546]
[1758746520993,3.46989276,211.43,211.42,4.2546]
[1758746521193,7.34,211.47,211.42,4.2546]
[1758746521194,3.46989276,211.46,211.42,4.2546]
[1758746521394,3.46989276,211.45,211.42,4.2546]
[1758746521597,3.46989276,211.44,211.42,4.2546]
[1758746521792,7.34,211.5,211.43,4.2545]
[1758746521996,3.47177513,211.49,211.43,4.2545]
[1758746522197,3.47177513,211.48,211.44,4.2542]
[1758746522499,3.47177513,211.47,211.44,4.2542]
[1758746522693,3.47177513,211.46,211.44,4.2542]
[1758746522892,3.47177513,211.45,211.44,4.2542]
[1758746523087,3.47177513,211.49,211.44,4.2542]
[1758746523400,3.47177513,211.48,211.44,4.2542]
[1758746523599,3.47177513,211.47,211.44,4.2542]
[1758746523801,3.47177513,211.46,211.44,4.2542]
[1758746523999,3.47177513,211.45,211.44,4.2542]
[1758746531701,7.34,211.44,211.41,4.2548]
[1758746532006,3.47177513,211.43,211.33,74.7269]
[1758746532304,3.47177513,211.42,211.34,120.26]
[1758746532500,7.34,211.44,211.34,120.26]
[1758746532705,3.47177653,211.43,211.34,120.26]
[1758746532905,3.47177653,211.42,211.34,120.26]
[1758746533096,7.34,211.44,211.34,120.26]
[1758746533295,10.81185683,211.43,211.39,4.2553]
[1758746533506,3.47185683,211.42,211.4,120.24]
[1758746535307,10.81185683,211.42,211.4,120.24]
[1758746535607,3.47288152,211.41,211.4,120.06]
[1758746535809,7.34,211.42,211.4,120.06]
[1758746536296,3.47454749,211.41,211.37,4.2557]
[1758746536497,3.47455911,211.4,211.38,120.04]
[1758746536704,7.34,211.45,211.38,120.04]
[1758746536903,7.34,211.43,211.38,120.04]
[1758746537104,7.34,211.41,211.38,124.2955]
[1758746537410,7.34,211.41,211.39,120.04]
[1758746538607,7.34,211.45,211.39,120.04]
[1758746538810,7.34,211.43,211.39,120.04]
[1758746539006,3.47446469,211.42,211.39,124.2953]
[1758746539208,3.47446469,211.41,211.39,124.2953]
[1758746539502,7.34,211.45,211.39,124.2953]
[1758746539703,7.34,211.43,211.39,124.2953]
[1758746540012,3.47353888,211.42,211.39,4.2553]
[1758746540313,3.47353888,211.41,211.4,119.96]
[1758746541307,10.81353888,211.41,211.39,4.2553]
[1758746541515,3.47353888,211.4,211.39,119.78]
[1758746541808,10.81353888,211.4,211.39,119.78]
[1758746542905,3.47353888,211.4,211.39,119.78]
[1758746543704,9.54556128,211.44,211.41,4.2549]
[1758746544009,9.54556128,211.44,211.39,119.68]
[1758746544010,7.49,211.42,211.39,119.68]
[1758746544208,5.6790082,211.41,211.39,119.68]
[1758746544503,3.47344692,211.4,211.36,4.2559]
[1758746544711,7.49,211.38,211.37,119.64]
[1758746545104,7.49,211.38,211.34,4.2563]
[1758746545302,7.49,211.38,211.35,119.66]
[1758746545707,7.49,211.38,211.35,4.2561]
[1758746546007,7.49,211.38,211.36,119.66]
[1758746546610,7.49,211.38,211.35,4.2561]
[1758746546811,7.49,211.38,211.36,119.64]
[1758746547911,7.49,211.4,211.36,119.64]
[1758746548111,3.47217045,211.39,211.36,119.64]
[1758746548309,7.49,211.4,211.36,119.64]
[1758746548504,10.9623515,211.39,211.36,119.64]
[1758746548710,7.49,211.37,211.35,4.2561]
[1758746548903,7.49,211.37,211.33,4.2565]
[1758746549208,7.49,211.37,211.33,123.7965]
[1758746549607,2.20556128,211.38,211.33,119.54]
[1758746549807,7.49,211.41,211.33,119.54]
[1758746550114,5.67766707,211.4,211.33,119.54]
[1758746550413,3.47215142,211.39,211.36,4.2559]
[1758746550613,9.69556128,211.4,211.36,4.2559]
[1758746550817,3.47215142,211.39,211.36,4.2559]
[1758746551004,2.20556128,211.4,211.37,4.2557]
[1758746551210,2.20556128,211.43,211.35,66.2081]
[1758746551504,3.47245493,211.42,211.36,66.2045]
[1758746551706,2.20556128,211.43,211.36,66.2045]
[1758746551907,3.47253658,211.42,211.36,66.2045]
[1758746552104,2.20556128,211.43,211.36,66.2045]
[1758746553122,2.20556128,211.43,211.41,4.2549]
[1758746553719,3.47311829,211.42,211.41,4.2549]
[1758746554118,7.49,211.48,211.42,4.2547]
[1758746554316,3.47311259,211.47,211.39,119.4]
[1758746554505,3.47311259,211.46,211.39,119.4]
[1758746554817,3.47311259,211.45,211.39,119.4]
[1758746555012,2.20556128,211.49,211.41,66.1893]
[1758746555213,3.47388891,211.48,211.41,66.1893]
[1758746555409,3.47388891,211.47,211.41,66.1893]
[1758746555616,7.49,211.53,211.47,4.2536]
[1758746555916,3.47425459,211.52,211.46,119.34]
[1758746556112,3.47425459,211.51,211.46,119.34]